fUSD/lending_fUSD_20241030
["ID","MTS","AMOUNT","RATE_DAILY","PERIOD"]
[341020782,1730272234882,-500.0,0.0003662,5]
[341020783,1730272234891,-622.98269473,0.0003662,5]
[341020784,1730272234901,-500.0,0.0003662,5]
[341020785,1730272234910,-550.02073163,0.0003662,5]
[341020786,1730272234920,-500.0,0.0003662,5]
[341020787,1730272234930,-986.68,0.0003662,5]
[341020788,1730272234940,-539.24114719,0.0003662,5]
[341020789,1730272234951,-458.27917703,0.0003662,5]
[341020790,1730272234960,-510.51923941,0.0003662,5]
[341020791,1730272234970,-500.0,0.0003662,5]
[341020792,1730272234979,-500.0,0.0003662,5]
[341020793,1730272234988,-1175.45,0.0003662,5]
[341020794,1730272234998,-500.0,0.0003662,5]
[341020795,1730272235007,-500.0,0.0003662,5]
[341020796,1730272235018,-500.0,0.0003662,5]
[341020797,1730272235028,-511.35984431,0.0003662,5]
[341020798,1730272235038,-500.0,0.0003662,5]
[341020799,1730272235048,-346.00629293,0.0003662,5]
[341020800,1730272235058,-1289.2,0.0003662,5]
[341020801,1730272235068,-500.0,0.0003662,5]
[341020802,1730272235079,-500.0,0.0003662,5]
[341020803,1730272235101,-500.0,0.0003662,5]
[341020804,1730272235120,-500.0,0.0003662,5]
[341020805,1730272235139,-500.0,0.0003662,5]
[341020806,1730272235158,-500.0,0.0003662,5]
[341020807,1730272235178,-526.38575879,0.0003662,5]
[341020808,1730272235196,-500.0,0.0003662,5]
[341020809,1730272235215,-500.0,0.0003662,5]
[341020810,1730272235230,-536.54730385,0.0003662,5]
[341020811,1730272235248,-500.0,0.0003662,5]
[341020812,1730272235266,-515.84468815,0.0003662,5]
[341020813,1730272235284,-500.0,0.0003662,5]
[341020814,1730272235296,-150.0,0.0003662,5]
[341020815,1730272235315,-500.0,0.0003662,5]
[341020816,1730272235332,-162.77457326,0.0003662,5]
[341020817,1730272235349,-500.0,0.0003662,5]
[341020818,1730272235361,-321.75252007,0.0003662,5]
[341020819,1730272235376,-500.0,0.0003662,5]
[341020820,1730272235392,-625.978823,0.0003662,5]
[341020821,1730272235407,-500.0,0.0003662,5]
[341020822,1730272235421,-500.0,0.0003662,5]
[341020823,1730272235435,-1576.6,0.0003662,5]
[341020824,1730272235449,-500.0,0.0003662,5]
[341020825,1730272235464,-500.0,0.0003662,5]
[341020826,1730272235478,-824.38,0.0003662,5]
[341020827,1730272235493,-500.0,0.0003662,5]
[341020828,1730272235507,-500.0,0.0003662,5]
[341020829,1730272235522,-355.07966613,0.0003662,5]
[341020830,1730272235536,-502.26,0.0003662,5]
[341020831,1730272235550,-538.63922556,0.0003662,5]
[341020832,1730272235564,-567.71844872,0.0003662,5]
[341020833,1730272235578,-500.0,0.0003662,5]
[341020834,1730272235592,-500.0,0.0003662,5]
[341020835,1730272235606,-500.0,0.0003662,5]
[341020836,1730272235621,-500.0,0.0003662,5]
[341020837,1730272235636,-500.0,0.0003662,5]
[341020838,1730272235652,-500.0,0.0003662,5]
[341020839,1730272235666,-727.22,0.0003662,5]
[341020840,1730272235681,-500.0,0.0003662,5]
[341020841,1730272235696,-500.0,0.0003662,5]
[341020842,1730272235711,-500.0,0.0003662,5]
[341020843,1730272235725,-500.0,0.0003662,5]
[341020844,1730272235740,-500.0,0.0003662,5]
[341020845,1730272235755,-538.16,0.0003662,5]
[341020846,1730272235770,-500.0,0.0003662,5]
[341020847,1730272235785,-500.0,0.0003662,5]
[341020848,1730272235800,-500.0,0.0003662,5]
[341020849,1730272235815,-585.18,0.0003662,5]
[341020850,1730272235829,-500.0,0.0003662,5]
[341020851,1730272235844,-502.52728139,0.0003662,5]
[341020852,1730272235859,-500.0,0.0003662,5]
[341020853,1730272235874,-509.47928638,0.0003662,5]
[341020854,1730272235889,-504.12933513,0.0003662,5]
[341020855,1730272235904,-652.45,0.0003662,5]
[341020856,1730272235919,-500.0,0.0003662,5]
[341020857,1730272235933,-627.89,0.0003662,5]
[341020858,1730272235947,-501.74737065,0.0003662,5]
[341020859,1730272235962,-511.23,0.0003662,5]
[341020860,1730272235977,-500.0,0.0003662,5]
[341020861,1730272235991,-500.0,0.0003662,5]
[341020862,1730272236006,-500.0,0.0003662,5]
[341020863,1730272236022,-524.66805294,0.0003662,5]
[341020864,1730272236036,-500.0,0.0003662,5]
[341020865,1730272236051,-500.0,0.0003662,5]
[341020866,1730272236066,-500.0,0.0003662,5]
[341020867,1730272236081,-500.0,0.0003662,5]
[341020868,1730272236096,-439.78037979,0.0003662,5]
[341020869,1730272236259,-500.0,0.0003662,5]
[341020870,1730272236268,-500.0,0.0003662,5]
[341020871,1730272236277,-500.0,0.0003662,5]
[341020872,1730272236287,-500.0,0.0003662,5]
[341020873,1730272236296,-500.0,0.0003662,5]
[341020874,1730272236305,-500.0,0.0003662,5]
[341020875,1730272236315,-500.0,0.0003662,5]
[341020876,1730272236326,-871.17,0.0003662,5]
[341020877,1730272236337,-710.31,0.0003662,5]
[341020878,1730272236347,-1625.5,0.0003662,5]
[341020879,1730272236356,-500.0,0.0003662,5]
[341020880,1730272236365,-533.23965399,0.0003662,5]
[341020881,1730272236376,-500.0,0.0003662,5]
[341020882,1730272236387,-831.26,0.0003662,5]
[341020883,1730272236396,-500.0,0.0003662,5]
[341020884,1730272236406,-500.0,0.0003662,5]
[341020885,1730272236415,-500.0,0.0003662,5]
[341020886,1730272236424,-500.0,0.0003662,5]
[341020887,1730272236434,-500.0,0.0003662,5]
[341020888,1730272236443,-677.76,0.0003662,5]
[341020889,1730272236454,-1975.2,0.0003662,5]
[341020890,1730272236463,-500.0,0.0003662,5]
[341020891,1730272236472,-1185.43,0.0003662,5]
[341020892,1730272236482,-690.04772717,0.0003662,5]
[341020893,1730272238338,-321.97712179,0.00036573,2]
[341020894,1730272238348,-39.86187821,0.00036619,5]
[341020895,1730272238360,-1377.23812179,0.00036619,5]
[341020896,1730272238370,-818.76187821,0.0003662,5]
[341020897,1730272238386,-1370.2451924,0.0003662,5]
[341020898,1730272238738,-2778.20639833,0.0003662,5]
[341020915,1730272240426,-937.50695772,0.00036619,5]
[341020916,1730272240455,-3056.31136491,0.00036619,5]
[341020917,1730272240484,-4688.54167737,0.00036619,5]
[341020918,1730272240494,-5888.09880389,0.0003662,5]
[341020919,1730272240503,-500.0,0.0003662,5]
[341020920,1730272240512,-547.18983174,0.0003662,5]
[341020921,1730272240522,-1056.76,0.0003662,5]
[341020922,1730272240532,-724.77,0.0003662,5]
[341020923,1730272240543,-519.2673684,0.0003662,5]
[341020924,1730272240555,-500.0,0.0003662,5]
[341020925,1730272240566,-531.64066629,0.0003662,5]
[341020926,1730272240576,-500.0,0.0003662,5]
[341020927,1730272240586,-554.31489056,0.0003662,5]
[341020928,1730272240595,-2128.95,0.0003662,5]
[341020929,1730272240605,-500.0,0.0003662,5]
[341020930,1730272240616,-500.0,0.0003662,5]
[341020931,1730272240626,-649.02,0.0003662,5]
[341020932,1730272240635,-541.89970083,0.0003662,5]
[341020933,1730272240645,-500.0,0.0003662,5]
[341020934,1730272240656,-524.20680427,0.0003662,5]
[341020935,1730272240666,-715.03,0.0003662,5]
[341020936,1730272240675,-500.0,0.0003662,5]
[341020937,1730272240685,-2007.88,0.0003662,120]
[341020938,1730272240694,-500.0,0.0003662,5]
[341020939,1730272240703,-562.53244246,0.0003662,5]
[341020940,1730272240713,-530.03,0.0003662,5]
[341020941,1730272240722,-366.68965596,0.0003662,5]
[341020942,1730272240731,-1567.86,0.0003662,5]
[341020943,1730272240740,-515.06987945,0.0003662,5]
[341020944,1730272240749,-500.0,0.0003662,5]
[341020945,1730272240759,-500.0,0.0003662,5]
[341020946,1730272240768,-397.54513327,0.0003662,5]
[341020947,1730272240781,-310.21486673,0.0003662,5]
[341020948,1730272240790,-800.63,0.0003662,5]
[341020949,1730272240799,-500.0,0.0003662,5]
[341020950,1730272240808,-500.0,0.0003662,5]
[341020951,1730272240818,-2349.68,0.0003662,5]
[341020952,1730272240827,-500.0,0.0003662,5]
[341020953,1730272240836,-2374.79,0.0003662,5]
[341020954,1730272240845,-500.0,0.0003662,5]
[341020955,1730272240854,-2240.77,0.0003662,5]
[341020956,1730272240864,-500.0,0.0003662,5]
[341020957,1730272240873,-2000.0,0.0003662,120]
[341020958,1730272240882,-500.0,0.0003662,5]
[341020959,1730272240891,-500.0,0.0003662,5]
[341020960,1730272240901,-500.0,0.0003662,5]
[341020961,1730272240910,-570.55,0.0003662,5]
[341020962,1730272240919,-500.0,0.0003662,5]
[341020963,1730272240929,-500.0,0.0003662,5]
[341020964,1730272240938,-500.0,0.0003662,5]
[341020965,1730272240946,-500.0,0.0003662,5]
[341020966,1730272240956,-500.0,0.0003662,5]
[341020967,1730272240964,-500.0,0.0003662,5]
[341020968,1730272240973,-500.0,0.0003662,5]
[341020969,1730272240983,-500.0,0.0003662,5]
[341020970,1730272240991,-1361.42,0.0003662,5]
[341020971,1730272241000,-889.69,0.0003662,5]
[341020972,1730272241010,-500.0,0.0003662,5]
[341020973,1730272241019,-500.0,0.0003662,5]
[341020974,1730272241028,-500.0,0.0003662,5]
[341020975,1730272241037,-500.0,0.0003662,5]
[341020976,1730272241046,-155.71922756,0.0003662,5]
[341020977,1730272241055,-500.0,0.0003662,5]
[341020978,1730272241064,-723.89,0.0003662,5]
[341020979,1730272241073,-500.0,0.0003662,5]
[341020980,1730272241082,-3069.61,0.0003662,5]
[341020981,1730272241091,-500.0,0.0003662,5]
[341020982,1730272241100,-500.0,0.0003662,5]
[341020983,1730272241109,-500.0,0.0003662,5]
[341020984,1730272241118,-252.65698769,0.0003662,5]
[341020985,1730272241127,-500.0,0.0003662,5]
[341020986,1730272241136,-500.0,0.0003662,5]
[341020987,1730272241145,-500.0,0.0003662,5]
[341020988,1730272241154,-500.0,0.0003662,5]
[341020989,1730272241163,-500.0,0.0003662,5]
[341020990,1730272241173,-500.0,0.0003662,5]
[341020991,1730272241181,-500.0,0.0003662,5]
[341020992,1730272241190,-500.0,0.0003662,5]
[341020993,1730272241199,-500.0,0.0003662,5]
[341020994,1730272241208,-500.0,0.0003662,5]
[341020995,1730272241217,-500.0,0.0003662,5]
[341020996,1730272241226,-1289.35,0.0003662,5]
[341020997,1730272241235,-500.0,0.0003662,5]
[341020998,1730272241244,-500.0,0.0003662,5]
[341020999,1730272241253,-500.0,0.0003662,5]
[341021000,1730272241262,-500.0,0.0003662,5]
[341021001,1730272241271,-816.53,0.0003662,5]
[341021002,1730272241280,-500.0,0.0003662,5]
[341021003,1730272241290,-500.0,0.0003662,5]
[341021004,1730272241299,-500.0,0.0003662,5]
[341021005,1730272241308,-745.27,0.0003662,5]
[341021006,1730272241317,-500.0,0.0003662,5]
[341021007,1730272241328,-500.0,0.0003662,5]
[341021008,1730272241338,-500.0,0.0003662,5]
[341021009,1730272241347,-609.61,0.0003662,5]
[341021010,1730272241356,-500.0,0.0003662,5]
[341021011,1730272241365,-500.0,0.0003662,5]
[341021012,1730272241374,-500.0,0.0003662,5]
[341021013,1730272241383,-500.0,0.0003662,5]
[341021014,1730272241391,-500.0,0.0003662,5]
[341021015,1730272241401,-500.0,0.0003662,5]
[341021016,1730272241410,-500.0,0.0003662,5]
[341021017,1730272241419,-736.08,0.0003662,5]
[341021018,1730272241428,-1026.77,0.0003662,5]
[341021019,1730272241438,-1908.75,0.0003662,5]
[341021020,1730272241447,-700.0,0.0003662,5]
[341021021,1730272241456,-500.0,0.0003662,5]
[341021022,1730272241465,-500.0,0.0003662,5]
[341021023,1730272241474,-500.0,0.0003662,5]
[341021024,1730272241483,-500.0,0.0003662,5]
[341021025,1730272241492,-335.87141353,0.0003662,5]
[341021026,1730272241501,-500.0,0.0003662,5]
[341021027,1730272241510,-500.0,0.0003662,5]
[341021028,1730272241520,-500.0,0.0003662,5]
[341021029,1730272241529,-506.97844539,0.0003662,5]
[341021030,1730272241538,-517.77182307,0.0003662,5]
[341021031,1730272241547,-500.0,0.0003662,5]
[341021032,1730272241555,-500.0,0.0003662,5]
[341021033,1730272241564,-500.0,0.0003662,5]
[341021034,1730272241573,-1664.23,0.0003662,5]
[341021035,1730272241582,-552.60428767,0.0003662,5]
[341021036,1730272241591,-513.96621599,0.0003662,5]
[341021037,1730272241600,-500.0,0.0003662,5]
[341021038,1730272241609,-500.0,0.0003662,5]
[341021039,1730272241619,-500.0,0.0003662,5]
[341021040,1730272241628,-500.0,0.0003662,5]
[341021041,1730272241637,-556.42511747,0.0003662,5]
[341021042,1730272241647,-500.0,0.0003662,5]
[341021043,1730272241656,-552.35937719,0.0003662,5]
[341021044,1730272241665,-597.45564442,0.0003662,5]
[341021045,1730272241675,-500.0,0.0003662,5]
[341021046,1730272241684,-500.0,0.0003662,5]
[341021047,1730272241693,-517.54466304,0.0003662,5]
[341021048,1730272241703,-500.0,0.0003662,5]
[341021049,1730272241712,-661.81,0.0003662,5]
[341021050,1730272241721,-500.0,0.0003662,5]
[341021051,1730272241848,-500.0,0.0003662,5]
[341021052,1730272241859,-500.0,0.0003662,5]
[341021053,1730272241870,-398.72009965,0.0003662,5]
[341021054,1730272241879,-500.0,0.0003662,5]
[341021055,1730272241889,-5020.1,0.0003662,5]
[341021056,1730272241900,-880.66,0.0003662,5]
[341021057,1730272241910,-600.57343371,0.0003662,5]
[341021058,1730272241919,-500.0,0.0003662,5]
[341021059,1730272241929,-500.0,0.0003662,5]
[341021060,1730272241938,-407.0200082,0.0003662,5]
[341021061,1730272241947,-500.0,0.0003662,5]
[341021062,1730272241956,-500.0,0.0003662,5]
[341021063,1730272241966,-500.0,0.0003662,5]
[341021064,1730272241975,-825.68,0.0003662,5]
[341021065,1730272241984,-500.0,0.0003662,5]
[341021066,1730272241993,-500.0,0.0003662,5]
[341021067,1730272242002,-500.0,0.0003662,5]
[341021068,1730272242011,-500.0,0.0003662,5]
[341021069,1730272242020,-178.45444364,0.0003662,5]
[341021070,1730272242037,-321.54555636,0.0003662,5]
[341021071,1730272242047,-500.0,0.0003662,5]
[341021072,1730272242056,-524.70850245,0.0003662,5]
[341021073,1730272242094,-160.68149755,0.0003662,5]
[341021074,1730272242104,-367.86850245,0.0003662,5]
[341021075,1730272242114,-132.13149755,0.0003662,5]
[341021076,1730272242124,-500.0,0.0003662,5]
[341021077,1730272242133,-500.0,0.0003662,5]
[341021078,1730272242142,-500.0,0.0003662,5]
[341021079,1730272242151,-864.47,0.0003662,5]
[341021080,1730272242160,-1850.1,0.0003662,5]
[341021081,1730272242169,-234.9724886,0.0003662,5]
[341021082,1730272242178,-500.0,0.0003662,5]
[341021083,1730272242187,-480.82601385,0.0003662,5]
[341021084,1730272242221,-19.17398615,0.0003662,5]
[341021085,1730272242231,-247.00601385,0.0003662,5]
[341021086,1730272242251,-252.99398615,0.0003662,5]
[341021087,1730272242261,-500.0,0.0003662,5]
[341021088,1730272242270,-500.0,0.0003662,5]
[341021089,1730272242280,-500.0,0.0003662,5]
[341021090,1730272242291,-500.0,0.0003662,5]
[341021091,1730272242301,-17.00601385,0.0003662,5]
[341021092,1730272242314,-400.07483383,0.0003662,5]
[341021093,1730272242328,-82.91915232,0.0003662,5]
[341021094,1730272242341,-345.87406589,0.0003662,5]
[341021095,1730272242352,-154.12593411,0.0003662,5]
[341021096,1730272242363,-1394.58,0.0003662,5]
[341021097,1730272242373,-1203.03,0.0003662,5]
[341021098,1730272242383,-500.0,0.0003662,5]
[341021099,1730272242392,-29.49601385,0.0003662,5]
[341021100,1730272242408,-970.50398615,0.0003662,5]
[341021101,1730272242418,-505.37,0.0003662,5]
[341021102,1730272242429,-500.0,0.0003662,5]
[341021103,1730272242440,-500.0,0.0003662,5]
[341021104,1730272242450,-201.89202188,0.0003662,5]
[341021105,1730272242460,-500.0,0.0003662,5]
[341021106,1730272242470,-1024.21,0.0003662,15]
[341021107,1730272242481,-500.0,0.0003662,5]
[341021108,1730272242492,-500.0,0.0003662,5]
[341021109,1730272242501,-1028.96,0.0003662,5]
[341021110,1730272242511,-1030.75,0.0003662,5]
[341021111,1730272242521,-500.0,0.0003662,5]
[341021112,1730272242530,-500.0,0.0003662,5]
[341021113,1730272242540,-16669.83883966,0.00036621,2]
[341021115,1730272243415,-1789.15563346,0.00036621,2]
[341021116,1730272243482,-31.37157216,0.00036621,2]
[341021117,1730272243498,-3004.950001,0.00036621,2]
[341021118,1730272243509,-7672.37424559,0.00036621,2]
[341021119,1730272243599,-251.71125,0.00036621,2]
[341021120,1730272243670,-70556.85476806,0.00036621,2]
[341021121,1730272243683,-5477.07009007,0.00036621,2]
[341021122,1730272243694,-167.01,0.00036695,2]
[341021123,1730272243704,-250.0,0.000367,5]
[341021124,1730272243715,-334.2,0.000367,5]
[341021125,1730272243726,-321.97712179,0.00036711,2]
[341021126,1730272243736,-238.81586651,0.00036716,15]
[341021127,1730272243745,-531.69748715,0.00036719,5]
[341021128,1730272243756,-500.0,0.00036719,5]
[341021129,1730272243766,-500.0,0.00036719,5]
[341021130,1730272243775,-500.0,0.00036719,5]
[341021131,1730272243785,-500.0,0.00036719,5]
[341021132,1730272243794,-500.0,0.00036719,5]
[341021133,1730272243804,-867.32,0.00036719,5]
[341021134,1730272243813,-500.0,0.00036719,5]
[341021135,1730272243822,-500.0,0.00036719,5]
[341021136,1730272243831,-500.0,0.00036719,5]
[341021137,1730272243841,-500.0,0.00036719,5]
[341021138,1730272243850,-500.0,0.00036719,5]
[341021139,1730272243860,-500.0,0.00036719,5]
[341021140,1730272243869,-500.0,0.00036719,5]
[341021141,1730272243879,-500.0,0.00036719,5]
[341021142,1730272243888,-500.0,0.00036719,5]
[341021143,1730272243898,-500.0,0.00036719,5]
[341021144,1730272243907,-500.0,0.00036719,5]
[341021145,1730272243916,-500.0,0.00036719,5]
[341021146,1730272243926,-500.0,0.00036719,5]
[341021147,1730272243935,-1429.22,0.00036719,5]
[341021148,1730272243945,-178.1,0.00036719,5]
[341021149,1730272243954,-500.0,0.00036719,5]
[341021150,1730272243963,-500.0,0.00036719,5]
[341021151,1730272243972,-500.0,0.00036719,5]
[341021152,1730272243981,-527.53005909,0.00036719,5]
[341021153,1730272243990,-500.0,0.00036719,5]
[341021154,1730272244107,-500.0,0.00036719,5]
[341021155,1730272244116,-500.0,0.00036719,5]
[341021156,1730272244125,-162.39646674,0.00036719,5]
[341021157,1730272244135,-535.8388405,0.00036719,5]
[341021158,1730272244144,-500.0,0.00036719,5]
[341021159,1730272244155,-500.0,0.00036719,5]
[341021160,1730272244163,-500.0,0.00036719,5]
[341021161,1730272244171,-500.0,0.00036719,5]
[341021162,1730272244178,-500.0,0.00036719,5]
[341021163,1730272244187,-500.0,0.00036719,5]
[341021164,1730272244195,-500.0,0.00036719,5]
[341021165,1730272244203,-511.05117181,0.00036719,5]
[341021166,1730272244212,-500.0,0.00036719,5]
[341021167,1730272244222,-500.0,0.00036719,5]
[341021168,1730272244231,-633.53395777,0.00036719,5]
[341021169,1730272244241,-500.0,0.00036719,5]
[341021170,1730272244251,-500.0,0.00036719,5]
[341021171,1730272244261,-435.82267715,0.00036719,5]
[341021172,1730272244270,-500.0,0.00036719,5]
[341021173,1730272244279,-500.0,0.00036719,5]
[341021174,1730272244288,-500.0,0.00036719,5]
[341021175,1730272244298,-500.0,0.00036719,5]
[341021176,1730272244307,-500.0,0.00036719,5]
[341021177,1730272244316,-158.62480822,0.00036719,5]
[341021178,1730272244326,-328.68884543,0.00036719,5]
[341021179,1730272244340,-500.0,0.00036719,5]
[341021180,1730272244350,-500.0,0.00036719,5]
[341021181,1730272244359,-500.0,0.00036719,5]
[341021182,1730272244368,-500.0,0.00036719,5]
[341021183,1730272244377,-500.0,0.00036719,5]
[341021184,1730272244387,-500.0,0.00036719,5]
[341021185,1730272244396,-500.0,0.00036719,5]
[341021186,1730272244407,-500.0,0.00036719,5]
[341021187,1730272244416,-500.0,0.00036719,5]
[341021188,1730272244426,-500.0,0.00036719,5]
[341021189,1730272244435,-863.05,0.00036719,5]
[341021190,1730272244445,-500.0,0.00036719,5]
[341021191,1730272244454,-500.0,0.00036719,5]
[341021192,1730272244464,-500.0,0.00036719,5]
[341021193,1730272244473,-500.0,0.00036719,5]
[341021194,1730272244482,-500.0,0.00036719,5]
[341021195,1730272244492,-500.0,0.00036719,5]
[341021196,1730272244502,-500.0,0.00036719,5]
[341021197,1730272244512,-500.0,0.00036719,5]
[341021198,1730272244521,-500.0,0.00036719,5]
[341021199,1730272244531,-500.0,0.00036719,5]
[341021200,1730272244540,-500.0,0.00036719,5]
[341021201,1730272244550,-500.0,0.00036719,5]
[341021202,1730272244559,-500.0,0.00036719,5]
[341021203,1730272244569,-519.64271812,0.00036719,5]
[341021204,1730272244579,-500.0,0.00036719,5]
[341021205,1730272244588,-500.0,0.00036719,5]
[341021206,1730272244597,-512.06382551,0.00036719,5]
[341021207,1730272244607,-500.0,0.00036719,5]
[341021208,1730272244616,-510.81182801,0.00036719,5]
[341021209,1730272244625,-500.0,0.00036719,5]
[341021210,1730272244634,-500.0,0.00036719,5]
[341021211,1730272244643,-500.0,0.00036719,5]
[341021212,1730272244652,-500.0,0.00036719,5]
[341021213,1730272244661,-500.0,0.00036719,5]
[341021214,1730272244671,-500.0,0.00036719,5]
[341021215,1730272244680,-500.0,0.00036719,5]
[341021216,1730272244689,-152.55905156,0.00036719,5]
[341021217,1730272244698,-500.0,0.00036719,5]
[341021218,1730272244708,-500.0,0.00036719,5]
[341021219,1730272244717,-500.0,0.00036719,5]
[341021220,1730272244726,-500.0,0.00036719,5]
[341021221,1730272244736,-500.0,0.00036719,5]
[341021222,1730272244745,-500.0,0.00036719,5]
[341021223,1730272244754,-500.0,0.00036719,5]
[341021224,1730272244763,-561.05211182,0.00036719,5]
[341021225,1730272244772,-509.04862844,0.00036719,5]
[341021226,1730272244781,-500.0,0.00036719,5]
[341021227,1730272244790,-500.0,0.00036719,5]
[341021228,1730272244799,-510.20728975,0.00036719,5]
[341021229,1730272244808,-500.0,0.00036719,5]
[341021230,1730272244818,-521.99257674,0.00036719,5]
[341021231,1730272244827,-518.79512104,0.00036719,5]
[341021232,1730272244836,-511.27139251,0.00036719,5]
[341021233,1730272244846,-500.0,0.00036719,5]
[341021234,1730272244855,-515.87789511,0.00036719,5]
[341021235,1730272244865,-500.0,0.00036719,5]
[341021236,1730272244875,-500.0,0.00036719,5]
[341021237,1730272244884,-230.38711393,0.00036719,5]
[341021238,1730272244894,-500.0,0.00036719,5]
[341021239,1730272244904,-500.0,0.00036719,5]
[341021240,1730272244914,-559.33,0.00036719,5]
[341021241,1730272244923,-524.58490086,0.00036719,5]
[341021242,1730272244932,-521.23768018,0.00036719,5]
[341021243,1730272244941,-500.0,0.00036719,5]
[341021244,1730272244951,-500.0,0.00036719,5]
[341021245,1730272244960,-500.0,0.00036719,5]
[341021246,1730272244970,-500.0,0.00036719,5]
[341021247,1730272244980,-532.36072155,0.00036719,5]
[341021248,1730272244989,-525.19136881,0.00036719,5]
[341021249,1730272244999,-500.00099872,0.00036719,5]
[341021250,1730272245008,-520.2845488,0.00036719,5]
[341021251,1730272245017,-516.38589743,0.00036719,5]
[341021252,1730272245026,-505.35805616,0.00036719,5]
[341021253,1730272245036,-500.0,0.00036719,5]
[341021254,1730272245045,-519.13650263,0.00036719,5]
[341021255,1730272245054,-204.59585299,0.00036719,5]
[341021256,1730272245063,-500.0,0.00036719,5]
[341021257,1730272245073,-500.0,0.00036719,5]
[341021258,1730272245082,-500.0,0.00036719,5]
[341021259,1730272245091,-523.39007036,0.00036719,5]
[341021260,1730272245100,-500.0,0.00036719,5]
[341021261,1730272245109,-619.71117052,0.00036719,5]
[341021262,1730272245119,-500.0,0.00036719,5]
[341021263,1730272245128,-570.49,0.00036719,5]
[341021264,1730272245138,-500.0,0.00036719,5]
[341021265,1730272245147,-500.0,0.00036719,5]
[341021266,1730272245156,-500.0,0.00036719,5]
[341021267,1730272245165,-500.0,0.00036719,5]
[341021268,1730272245175,-500.0,0.00036719,5]
[341021269,1730272245183,-500.0,0.00036719,5]
[341021270,1730272245193,-573.30850499,0.00036719,5]
[341021271,1730272245202,-500.0,0.00036719,5]
[341021272,1730272245212,-500.0,0.00036719,5]
[341021273,1730272245221,-500.0,0.00036719,5]
[341021274,1730272245230,-500.0,0.00036719,5]
[341021275,1730272245239,-500.0,0.00036719,5]
[341021276,1730272245248,-500.0,0.00036719,5]
[341021277,1730272245257,-773.17,0.00036719,5]
[341021278,1730272245266,-500.0,0.00036719,5]
[341021279,1730272245275,-500.0,0.00036719,5]
[341021280,1730272245284,-500.0,0.00036719,5]
[341021281,1730272245294,-500.0,0.00036719,5]
[341021282,1730272245303,-500.0,0.00036719,5]
[341021283,1730272245312,-500.0,0.00036719,5]
[341021284,1730272245322,-500.0,0.00036719,5]
[341021285,1730272245335,-506.49975303,0.00036719,5]
[341021286,1730272245345,-500.0,0.00036719,5]
[341021287,1730272245355,-500.0,0.00036719,5]
[341021288,1730272245364,-500.0,0.00036719,5]
[341021289,1730272245374,-500.0,0.00036719,5]
[341021290,1730272245383,-500.0,0.00036719,5]
[341021291,1730272245393,-548.52795071,0.00036719,5]
[341021292,1730272245403,-5598.27,0.00036719,5]
[341021293,1730272245412,-500.0,0.00036719,5]
[341021294,1730272245422,-500.0,0.00036719,5]
[341021295,1730272245431,-500.0,0.00036719,5]
[341021296,1730272245441,-500.0,0.00036719,5]
[341021297,1730272245451,-500.0,0.00036719,5]
[341021298,1730272245461,-500.0,0.00036719,5]